[Event "Late-Titled-Tuesday-Blitz-April-16-2024"]
[Site "Chess.com"]
[Date "2024.04.16"]
[Round "4"]
[White "Chess_Star1234"]
[Black "Chempiblinka"]
[Result "1-0"]
[WhiteElo "2532"]
[BlackElo "2368"]
[TimeControl "180+1"]
[EndTime "14:38:22 PDT"]
[Termination "Chess_Star1234 won on time"]

1. d4 {[%clk 0:02:40.8]} 1... d5 {[%clk 0:02:58.7]} 2. c4 {[%clk 0:02:39.9]}
2... e6 {[%clk 0:02:59]} 3. Nc3 {[%clk 0:02:30.1]} 3... Nf6 {[%clk 0:02:57.7]}
4. cxd5 {[%clk 0:02:26]} 4... exd5 {[%clk 0:02:57.8]} 5. Bg5 {[%clk 0:02:26.7]}
5... Be7 {[%clk 0:02:58.1]} 6. e3 {[%clk 0:02:27.3]} 6... Nbd7 {[%clk
0:02:57.5]} 7. Bd3 {[%clk 0:02:27.9]} 7... c6 {[%clk 0:02:58]} 8. Qc2 {[%clk
0:02:28.4]} 8... h6 {[%clk 0:02:58.4]} 9. Bh4 {[%clk 0:02:28.2]} 9... Nh5 {[%clk
0:02:58.7]} 10. Bxe7 {[%clk 0:02:27.8]} 10... Qxe7 {[%clk 0:02:59.3]} 11. Nge2
{[%clk 0:02:28.6]} 11... Nb6 {[%clk 0:02:57.3]} 12. O-O {[%clk 0:02:28.6]} 12...
O-O {[%clk 0:02:57.6]} 13. Rab1 {[%clk 0:02:27.8]} 13... Bd7 {[%clk 0:02:57.5]}
14. b4 {[%clk 0:02:24.4]} 14... Nc8 {[%clk 0:02:56.8]} 15. a4 {[%clk 0:02:24.1]}
15... Nd6 {[%clk 0:02:56.4]} 16. b5 {[%clk 0:02:13.4]} 16... f5 {[%clk
0:02:27.5]} 17. bxc6 {[%clk 0:02:03.8]} 17... bxc6 {[%clk 0:02:27.5]} 18. Rfe1
{[%clk 0:01:50.9]} 18... Nf6 {[%clk 0:02:26.7]} 19. Nf4 {[%clk 0:01:31.1]} 19...
Qf7 {[%clk 0:02:26.2]} 20. Bf1 {[%clk 0:01:23.5]} 20... Nfe4 {[%clk 0:02:25.2]}
21. Nd3 {[%clk 0:01:20.1]} 21... Nxc3 {[%clk 0:02:13.6]} 22. Qxc3 {[%clk
0:01:06.8]} 22... Nc4 {[%clk 0:02:12.2]} 23. Nc5 {[%clk 0:00:56.5]} 23... Nd6
{[%clk 0:01:46.9]} 24. Nd3 {[%clk 0:00:42.9]} 24... Nc4 {[%clk 0:01:44.9]} 25.
Rb7 {[%clk 0:00:38.7]} 25... Rfb8 {[%clk 0:01:29]} 26. Reb1 {[%clk 0:00:36.9]}
26... Rxb7 {[%clk 0:01:29.1]} 27. Rxb7 {[%clk 0:00:37.8]} 27... Qe8 {[%clk
0:01:29.6]} 28. Nc5 {[%clk 0:00:36.7]} 28... Bc8 {[%clk 0:01:14.8]} 29. Rb1
{[%clk 0:00:18.5]} 29... Nd6 {[%clk 0:01:10.2]} 30. Nd3 {[%clk 0:00:18.9]} 30...
Ba6 {[%clk 0:01:04.7]} 31. Ne5 {[%clk 0:00:14.9]} 31... Bxf1 {[%clk 0:01:00]}
32. Rxf1 {[%clk 0:00:13.7]} 32... Rc8 {[%clk 0:00:59.3]} 33. Rc1 {[%clk
0:00:13.1]} 33... Ne4 {[%clk 0:00:51.9]} 34. Qa5 {[%clk 0:00:10]} 34... c5
{[%clk 0:00:48.1]} 35. Qa6 {[%clk 0:00:03.7]} 35... c4 {[%clk 0:00:43.6]} 36.
Qxa7 {[%clk 0:00:03.8]} 36... c3 {[%clk 0:00:42.9]} 37. Qa5 {[%clk 0:00:03.3]}
37... Qe6 {[%clk 0:00:28]} 38. f3 {[%clk 0:00:03.5]} 38... Nd6 {[%clk
0:00:18.8]} 39. Rxc3 {[%clk 0:00:03.8]} 39... Nc4 {[%clk 0:00:19.1]} 40. Nxc4
{[%clk 0:00:04]} 40... dxc4 {[%clk 0:00:19.5]} 41. e4 {[%clk 0:00:03.5]} 41...
fxe4 {[%clk 0:00:19.5]} 42. fxe4 {[%clk 0:00:04.4]} 42... Qxe4 {[%clk
0:00:19.3]} 43. Qe5 {[%clk 0:00:03.2]} 43... Qb1+ {[%clk 0:00:16.5]} 44. Kf2
{[%clk 0:00:03.7]} 44... Rf8+ {[%clk 0:00:16.8]} 45. Kg3 {[%clk 0:00:03.8]}
45... Qb2 {[%clk 0:00:12.2]} 46. Rf3 {[%clk 0:00:03.8]} 46... Rxf3+ {[%clk
0:00:04.9]} 47. gxf3 {[%clk 0:00:04.7]} 47... Qd2 {[%clk 0:00:03.2]} 48. d5
{[%clk 0:00:04.7]} 1-0

[Event "Late-Titled-Tuesday-Blitz-April-16-2024"]
[Site "Chess.com"]
[Date "2024.04.16"]
[Round "4"]
[White "Caterpiller35"]
[Black "Oleg_Papayan"]
[Result "1/2-1/2"]
[WhiteElo "2491"]
[BlackElo "2688"]
[TimeControl "180+1"]
[EndTime "14:38:25 PDT"]
[Termination "Game drawn by stalemate"]

1. d4 {[%clk 0:03:00]} 1... Nf6 {[%clk 0:02:59.1]} 2. Bg5 {[%clk 0:02:58.2]}
2... d5 {[%clk 0:02:57.8]} 3. Bxf6 {[%clk 0:02:57.5]} 3... gxf6 {[%clk
0:02:58.7]} 4. e3 {[%clk 0:02:55.6]} 4... c5 {[%clk 0:02:57.2]} 5. c4 {[%clk
0:02:55.9]} 5... cxd4 {[%clk 0:02:50.7]} 6. exd4 {[%clk 0:02:53.9]} 6... Nc6
{[%clk 0:02:43.1]} 7. Nc3 {[%clk 0:02:46.2]} 7... dxc4 {[%clk 0:02:33.7]} 8. d5
{[%clk 0:02:41.2]} 8... Ne5 {[%clk 0:02:34]} 9. Bxc4 {[%clk 0:02:41.1]} 9...
Nxc4 {[%clk 0:02:33.3]} 10. Qa4+ {[%clk 0:02:41.3]} 10... Bd7 {[%clk 0:02:30.3]}
11. Qxc4 {[%clk 0:02:41.8]} 11... Qb6 {[%clk 0:02:27.1]} 12. Nge2 {[%clk
0:02:40.2]} 12... Rc8 {[%clk 0:02:18.9]} 13. Qd3 {[%clk 0:02:32.7]} 13... Qxb2
{[%clk 0:02:02.8]} 14. Rb1 {[%clk 0:02:27.9]} 14... Qa3 {[%clk 0:01:59.8]} 15.
Rxb7 {[%clk 0:02:19.3]} 15... Bh6 {[%clk 0:01:06.9]} 16. O-O {[%clk 0:02:16.1]}
16... Rd8 {[%clk 0:01:01.3]} 17. Rfb1 {[%clk 0:01:21.1]} 17... O-O {[%clk
0:00:56.4]} 18. R1b3 {[%clk 0:01:04.7]} 18... Qd6 {[%clk 0:00:50.4]} 19. Ne4
{[%clk 0:01:01.5]} 19... Qe5 {[%clk 0:00:46.5]} 20. d6 {[%clk 0:00:33.2]} 20...
Bc6 {[%clk 0:00:37.5]} 21. Rxe7 {[%clk 0:00:32.7]} 21... Bxe4 {[%clk 0:00:28]}
22. Qxe4 {[%clk 0:00:30.1]} 22... Qxe4 {[%clk 0:00:23]} 23. Rxe4 {[%clk
0:00:31]} 23... Rxd6 {[%clk 0:00:23.7]} 24. g3 {[%clk 0:00:30.4]} 24... Rd2
{[%clk 0:00:20.5]} 25. Nd4 {[%clk 0:00:30.3]} 25... Rc8 {[%clk 0:00:17.3]} 26.
Nf5 {[%clk 0:00:29.6]} 26... Bf8 {[%clk 0:00:13.6]} 27. Rg4+ {[%clk 0:00:24.8]}
27... Kh8 {[%clk 0:00:13.7]} 28. Rb7 {[%clk 0:00:24.5]} 28... Rc1+ {[%clk
0:00:06.9]} 29. Kg2 {[%clk 0:00:24.5]} 29... Rcc2 {[%clk 0:00:07.4]} 30. Rf4
{[%clk 0:00:24.6]} 30... h6 {[%clk 0:00:05.5]} 31. Rxf7 {[%clk 0:00:23.8]} 31...
Bc5 {[%clk 0:00:04.7]} 32. Nxh6 {[%clk 0:00:21.3]} 32... Rxf2+ {[%clk
0:00:05.1]} 33. Rxf2 {[%clk 0:00:21.2]} 33... Rxf2+ {[%clk 0:00:06]} 34. Kh3
{[%clk 0:00:21.9]} 34... Rxa2 {[%clk 0:00:06.1]} 35. Ng4 {[%clk 0:00:19.8]}
35... Bd4 {[%clk 0:00:05.4]} 36. Nxf6 {[%clk 0:00:19.9]} 36... Bxf6 {[%clk
0:00:05.4]} 37. Rxf6 {[%clk 0:00:20.8]} 37... a5 {[%clk 0:00:06.3]} 38. Ra6
{[%clk 0:00:21]} 38... a4 {[%clk 0:00:06.3]} 39. g4 {[%clk 0:00:21.6]} 39... a3
{[%clk 0:00:05.6]} 40. Kg3 {[%clk 0:00:22]} 40... Ra1 {[%clk 0:00:04.8]} 41. h3
{[%clk 0:00:22.4]} 41... a2 {[%clk 0:00:05.2]} 42. Kh4 {[%clk 0:00:22.7]} 42...
Kg7 {[%clk 0:00:04.7]} 43. Kg5 {[%clk 0:00:22.7]} 43... Rh1 {[%clk 0:00:03.8]}
44. Ra7+ {[%clk 0:00:22.8]} 44... Kf8 {[%clk 0:00:03.7]} 45. Rxa2 {[%clk
0:00:23.1]} 45... Rxh3 {[%clk 0:00:03.7]} 46. Kg6 {[%clk 0:00:22.9]} 46... Rb3
{[%clk 0:00:02.4]} 47. g5 {[%clk 0:00:22.9]} 47... Rb6+ {[%clk 0:00:02.4]} 48.
Kh5 {[%clk 0:00:22.4]} 48... Kg7 {[%clk 0:00:02.7]} 49. Rd2 {[%clk 0:00:21.8]}
49... Rc6 {[%clk 0:00:02.3]} 50. Rd7+ {[%clk 0:00:21.9]} 50... Kg8 {[%clk
0:00:02.8]} 51. Re7 {[%clk 0:00:20.6]} 51... Rb6 {[%clk 0:00:03.4]} 52. Re5
{[%clk 0:00:20.5]} 52... Rc6 {[%clk 0:00:03.3]} 53. Rf5 {[%clk 0:00:20.5]} 53...
Rd6 {[%clk 0:00:03.5]} 54. Rc5 {[%clk 0:00:19.5]} 54... Re6 {[%clk 0:00:03.8]}
55. g6 {[%clk 0:00:19.7]} 55... Re1 {[%clk 0:00:03.4]} 56. Kh6 {[%clk
0:00:19.6]} 56... Rh1+ {[%clk 0:00:03.4]} 57. Kg5 {[%clk 0:00:20.1]} 57... Rg1+
{[%clk 0:00:04]} 58. Kf6 {[%clk 0:00:20.7]} 58... Rf1+ {[%clk 0:00:04.6]} 59.
Rf5 {[%clk 0:00:21.6]} 59... Rxf5+ {[%clk 0:00:04.9]} 60. Kxf5 {[%clk
0:00:22.2]} 60... Kg7 {[%clk 0:00:05.8]} 61. Kg5 {[%clk 0:00:22.8]} 61... Kg8
{[%clk 0:00:06.5]} 62. Kh6 {[%clk 0:00:23.7]} 62... Kh8 {[%clk 0:00:06.6]} 63.
g7+ {[%clk 0:00:24.1]} 63... Kg8 {[%clk 0:00:07]} 64. Kg6 {[%clk 0:00:25]}
1/2-1/2

[Event "Late-Titled-Tuesday-Blitz-April-16-2024"]
[Site "Chess.com"]
[Date "2024.04.16"]
[Round "4"]
[White "Itay121"]
[Black "Harry_Rakkel"]
[Result "0-1"]
[WhiteElo "2531"]
[BlackElo "2717"]
[TimeControl "180+1"]
[EndTime "14:38:28 PDT"]
[Termination "Harry_Rakkel won by checkmate"]

1. d4 {[%clk 0:03:00.9]} 1... Nf6 {[%clk 0:02:56.3]} 2. Nc3 {[%clk 0:03:00.6]}
2... d5 {[%clk 0:02:54.2]} 3. Bf4 {[%clk 0:03:00.8]} 3... a6 {[%clk 0:02:53.7]}
4. e3 {[%clk 0:03:00.9]} 4... e6 {[%clk 0:02:52.6]} 5. g4 {[%clk 0:03:01.5]}
5... Bb4 {[%clk 0:02:51.5]} 6. Bd3 {[%clk 0:02:47.7]} 6... c5 {[%clk 0:02:46.7]}
7. dxc5 {[%clk 0:02:34.1]} 7... Qa5 {[%clk 0:02:32.1]} 8. Ne2 {[%clk 0:02:13.1]}
8... Nbd7 {[%clk 0:02:24.4]} 9. a3 {[%clk 0:02:04.9]} 9... Bxc3+ {[%clk
0:02:19]} 10. Nxc3 {[%clk 0:02:05.8]} 10... Nxc5 {[%clk 0:02:13.6]} 11. g5
{[%clk 0:01:53.3]} 11... Nfe4 {[%clk 0:02:03.9]} 12. b4 {[%clk 0:01:29.7]} 12...
Nxc3 {[%clk 0:02:00.5]} 13. bxa5 {[%clk 0:01:19]} 13... Nxd1 {[%clk 0:01:59.6]}
14. Rxd1 {[%clk 0:01:14.4]} 14... Ke7 {[%clk 0:01:52.9]} 15. Kd2 {[%clk
0:01:04]} 15... Bd7 {[%clk 0:01:50.2]} 16. Rb1 {[%clk 0:01:03.2]} 16... Bc6
{[%clk 0:01:47.6]} 17. Be5 {[%clk 0:01:01.8]} 17... f6 {[%clk 0:01:44.6]} 18.
Bd4 {[%clk 0:00:59.1]} 18... Nd7 {[%clk 0:01:41.5]} 19. gxf6+ {[%clk 0:00:58.6]}
19... gxf6 {[%clk 0:01:41.3]} 20. Rhg1 {[%clk 0:00:56.2]} 20... Rag8 {[%clk
0:01:35.3]} 21. f4 {[%clk 0:00:48]} 21... e5 {[%clk 0:01:30.8]} 22. fxe5 {[%clk
0:00:47.6]} 22... fxe5 {[%clk 0:01:31.7]} 23. Bc3 {[%clk 0:00:47.5]} 23... h5
{[%clk 0:01:26.3]} 24. Bf5 {[%clk 0:00:41.9]} 24... Rxg1 {[%clk 0:01:06.7]} 25.
Rxg1 {[%clk 0:00:42.8]} 25... Kf6 {[%clk 0:01:06.2]} 26. Rf1 {[%clk 0:00:30.3]}
26... Kg5 {[%clk 0:01:05.2]} 27. h4+ {[%clk 0:00:26.3]} 27... Kxh4 {[%clk
0:01:02.9]} 28. Rg1 {[%clk 0:00:24.5]} 28... Rf8 {[%clk 0:00:58.4]} 29. Bxd7
{[%clk 0:00:16.8]} 29... Bxd7 {[%clk 0:00:58]} 30. Bxe5 {[%clk 0:00:17.7]} 30...
Bg4 {[%clk 0:00:54.7]} 31. Bg3+ {[%clk 0:00:17.3]} 31... Kh3 {[%clk 0:00:53.8]}
32. Bf4 {[%clk 0:00:17.4]} 32... d4 {[%clk 0:00:50.7]} 33. Kd3 {[%clk
0:00:14.8]} 33... dxe3 {[%clk 0:00:49.9]} 34. Bxe3 {[%clk 0:00:15.3]} 34... Rf5
{[%clk 0:00:49]} 35. Bb6 {[%clk 0:00:13.8]} 35... Kh2 {[%clk 0:00:44.4]} 36. c4
{[%clk 0:00:13.1]} 36... Rf3+ {[%clk 0:00:40.5]} 37. Ke4 {[%clk 0:00:11.7]}
37... Rxa3 {[%clk 0:00:40.3]} 38. Rc1 {[%clk 0:00:06.4]} 38... Bf3+ {[%clk
0:00:38.2]} 39. Kf4 {[%clk 0:00:06.4]} 39... h4 {[%clk 0:00:34.9]} 40. Kg5
{[%clk 0:00:05.8]} 40... h3 {[%clk 0:00:34.5]} 41. Rc2+ {[%clk 0:00:06.4]} 41...
Bg2 {[%clk 0:00:33.8]} 42. Bc7+ {[%clk 0:00:07]} 42... Kg1 {[%clk 0:00:33.1]}
43. Bb6+ {[%clk 0:00:06.3]} 43... Kf1 {[%clk 0:00:32.9]} 44. Rc1+ {[%clk
0:00:06.7]} 44... Ke2 {[%clk 0:00:32.8]} 45. Kg4 {[%clk 0:00:05.5]} 45... Kd2
{[%clk 0:00:30.8]} 46. Rg1 {[%clk 0:00:05.1]} 46... Rd3 {[%clk 0:00:29.1]} 47.
Kf4 {[%clk 0:00:04.4]} 47... Kc3 {[%clk 0:00:27.9]} 48. c5 {[%clk 0:00:04.3]}
48... h2 {[%clk 0:00:26.8]} 49. Rxg2 {[%clk 0:00:03.1]} 49... h1=Q {[%clk
0:00:26.7]} 50. Rg4 {[%clk 0:00:02.9]} 50... Qf3+ {[%clk 0:00:26]} 51. Kg5
{[%clk 0:00:03.5]} 51... Rd5+ {[%clk 0:00:26.4]} 52. Kh4 {[%clk 0:00:04.1]}
52... Qh1+ {[%clk 0:00:25.8]} 53. Kg3 {[%clk 0:00:04.8]} 53... Rd3+ {[%clk
0:00:25.7]} 54. Kf4 {[%clk 0:00:05.3]} 54... Rf3+ {[%clk 0:00:25.8]} 55. Ke5
{[%clk 0:00:04.9]} 55... Qh5+ {[%clk 0:00:25.2]} 56. Rg5 {[%clk 0:00:04.1]}
56... Qxg5+ {[%clk 0:00:24.9]} 57. Kd6 {[%clk 0:00:04.4]} 57... Qf6+ {[%clk
0:00:23.9]} 58. Kc7 {[%clk 0:00:05.3]} 58... Qc6+ {[%clk 0:00:23.2]} 59. Kb8
{[%clk 0:00:05.6]} 59... Rf8+ {[%clk 0:00:22.7]} 60. Ka7 {[%clk 0:00:06]} 60...
Qc8 {[%clk 0:00:22.8]} 61. Bd8 {[%clk 0:00:04.6]} 61... Qa8+ {[%clk 0:00:22.1]}
62. Kb6 {[%clk 0:00:04.9]} 62... Qxd8+ {[%clk 0:00:23]} 63. Ka7 {[%clk
0:00:04.9]} 63... Qb8+ {[%clk 0:00:23.2]} 64. Kb6 {[%clk 0:00:05.1]} 64... Rf6+
{[%clk 0:00:23.8]} 65. c6 {[%clk 0:00:05.8]} 65... Rxc6# {[%clk 0:00:24.7]} 0-1

[Event "Late-Titled-Tuesday-Blitz-April-16-2024"]
[Site "Chess.com"]
[Date "2024.04.16"]
[Round "4"]
[White "RantomOpening"]
[Black "bipe137"]
[Result "0-1"]
[WhiteElo "2531"]
[BlackElo "2715"]
[TimeControl "180+1"]
[EndTime "14:38:28 PDT"]
[Termination "bipe137 won by resignation"]

1. c4 {[%clk 0:03:00.8]} 1... e6 {[%clk 0:03:00]} 2. Nf3 {[%clk 0:02:58.1]} 2...
d5 {[%clk 0:02:59.8]} 3. e3 {[%clk 0:02:58.5]} 3... Nf6 {[%clk 0:02:59.7]} 4.
Nc3 {[%clk 0:02:58.4]} 4... Be7 {[%clk 0:02:59.6]} 5. b3 {[%clk 0:02:58.4]} 5...
O-O {[%clk 0:02:59.8]} 6. Bb2 {[%clk 0:02:57.7]} 6... a5 {[%clk 0:03:00.4]} 7.
d4 {[%clk 0:02:58]} 7... b6 {[%clk 0:02:58.5]} 8. Be2 {[%clk 0:02:57.3]} 8...
Bb7 {[%clk 0:02:59.1]} 9. O-O {[%clk 0:02:57.7]} 9... Nbd7 {[%clk 0:02:59.2]}
10. Ne5 {[%clk 0:02:54.3]} 10... dxc4 {[%clk 0:02:56.7]} 11. Nxc4 {[%clk
0:02:49.7]} 11... Nd5 {[%clk 0:02:48.1]} 12. Bf3 {[%clk 0:02:37]} 12... N7f6
{[%clk 0:02:47.7]} 13. Nxd5 {[%clk 0:02:30.4]} 13... exd5 {[%clk 0:02:44.5]} 14.
Ne5 {[%clk 0:02:30.1]} 14... Rc8 {[%clk 0:02:39.9]} 15. Rc1 {[%clk 0:02:20.7]}
15... c6 {[%clk 0:02:40.1]} 16. Be2 {[%clk 0:02:16.4]} 16... Rc7 {[%clk
0:02:36.4]} 17. Bd3 {[%clk 0:02:15.4]} 17... Nd7 {[%clk 0:02:29.8]} 18. Qh5
{[%clk 0:02:12.9]} 18... g6 {[%clk 0:02:26.6]} 19. Qe2 {[%clk 0:02:07.5]} 19...
f6 {[%clk 0:02:19.1]} 20. Nxg6 {[%clk 0:01:51.6]} 20... hxg6 {[%clk 0:02:14.1]}
21. Bxg6 {[%clk 0:01:52.5]} 21... Bd6 {[%clk 0:02:13.6]} 22. Qh5 {[%clk
0:01:46.7]} 22... Qe7 {[%clk 0:02:11.6]} 23. f4 {[%clk 0:01:46.2]} 23... f5
{[%clk 0:01:39.7]} 24. Rf3 {[%clk 0:01:39.5]} 24... Nf6 {[%clk 0:01:37.7]} 25.
Qxf5 {[%clk 0:01:24.8]} 25... Bc8 {[%clk 0:01:30.4]} 26. Qg5 {[%clk 0:01:20.2]}
26... Ne4 {[%clk 0:01:30.2]} 27. Qh5 {[%clk 0:00:44.5]} 27... Qf6 {[%clk
0:01:09.1]} 28. Bxe4 {[%clk 0:00:40.3]} 28... dxe4 {[%clk 0:01:09.1]} 29. Rg3+
{[%clk 0:00:40.7]} 29... Rg7 {[%clk 0:01:09.5]} 30. Rc2 {[%clk 0:00:37.2]} 30...
Rxg3 {[%clk 0:00:47.8]} 31. hxg3 {[%clk 0:00:38.1]} 31... Qf5 {[%clk 0:00:09.2]}
32. Qxf5 {[%clk 0:00:25]} 32... Bxf5 {[%clk 0:00:09.8]} 33. Rxc6 {[%clk
0:00:25.9]} 33... Bb4 {[%clk 0:00:09.5]} 34. Kf2 {[%clk 0:00:21.2]} 34... Rc8
{[%clk 0:00:05.6]} 35. d5 {[%clk 0:00:11.6]} 35... Bd7 {[%clk 0:00:02.8]} 36.
Rxc8+ {[%clk 0:00:10.4]} 36... Bxc8 {[%clk 0:00:03.7]} 37. Bd4 {[%clk
0:00:09.6]} 37... Bc5 {[%clk 0:00:03.4]} 38. Be5 {[%clk 0:00:10]} 38... Kf7
{[%clk 0:00:03.6]} 39. Ke2 {[%clk 0:00:09]} 39... Bb7 {[%clk 0:00:04.2]} 40. Kd2
{[%clk 0:00:09.9]} 40... Bxd5 {[%clk 0:00:03.8]} 41. g4 {[%clk 0:00:09.1]} 41...
Be6 {[%clk 0:00:04.1]} 42. f5 {[%clk 0:00:08.8]} 42... Bd5 {[%clk 0:00:04.7]}
43. Bd4 {[%clk 0:00:08.2]} 43... Bxd4 {[%clk 0:00:04.5]} 44. exd4 {[%clk
0:00:09.1]} 44... Kf6 {[%clk 0:00:04.9]} 45. Ke3 {[%clk 0:00:07.3]} 45... Kg5
{[%clk 0:00:05.3]} 46. f6 {[%clk 0:00:07]} 46... Kxf6 {[%clk 0:00:05.6]} 47. Kf4
{[%clk 0:00:07.4]} 47... Ke6 {[%clk 0:00:05.7]} 48. g5 {[%clk 0:00:06.9]} 48...
b5 {[%clk 0:00:06.2]} 49. Kg4 {[%clk 0:00:05.9]} 49... a4 {[%clk 0:00:05.9]} 50.
bxa4 {[%clk 0:00:06.2]} 50... b4 {[%clk 0:00:06.2]} 51. a5 {[%clk 0:00:06.3]}
51... Bxa2 {[%clk 0:00:06.7]} 52. a6 {[%clk 0:00:06.7]} 52... Bd5 {[%clk
0:00:07.3]} 53. a7 {[%clk 0:00:05.9]} 53... b3 {[%clk 0:00:07.7]} 54. a8=Q
{[%clk 0:00:04.3]} 54... Bxa8 {[%clk 0:00:07.1]} 0-1

[Event "Late-Titled-Tuesday-Blitz-April-16-2024"]
[Site "Chess.com"]
[Date "2024.04.16"]
[Round "4"]
[White "Rutricks"]
[Black "masterofpuppets2"]
[Result "1/2-1/2"]
[WhiteElo "2688"]
[BlackElo "2489"]
[TimeControl "180+1"]
[EndTime "14:38:28 PDT"]
[Termination "Game drawn by repetition"]

1. Nc3 {[%clk 0:02:59.4]} 1... d5 {[%clk 0:02:59.2]} 2. d4 {[%clk 0:02:59.3]}
2... Nf6 {[%clk 0:02:59]} 3. Bf4 {[%clk 0:02:59.9]} 3... c5 {[%clk 0:02:58.7]}
4. e3 {[%clk 0:03:00.2]} 4... Nc6 {[%clk 0:02:56.8]} 5. h4 {[%clk 0:02:54.7]}
5... a6 {[%clk 0:02:56]} 6. h5 {[%clk 0:02:55.2]} 6... h6 {[%clk 0:02:55.7]} 7.
Be2 {[%clk 0:02:48.6]} 7... cxd4 {[%clk 0:02:48.7]} 8. exd4 {[%clk 0:02:48.4]}
8... Bf5 {[%clk 0:02:47.5]} 9. Nf3 {[%clk 0:02:45.2]} 9... e6 {[%clk 0:02:47.1]}
10. Bd3 {[%clk 0:02:25.1]} 10... Bg4 {[%clk 0:02:38.4]} 11. Be3 {[%clk
0:02:08.1]} 11... Rc8 {[%clk 0:02:25.3]} 12. a3 {[%clk 0:02:05.7]} 12... Bd6
{[%clk 0:02:23.4]} 13. Ne2 {[%clk 0:02:05.9]} 13... Nxh5 {[%clk 0:02:14.3]} 14.
Qd2 {[%clk 0:02:02.7]} 14... Nf6 {[%clk 0:02:13.6]} 15. Rh4 {[%clk 0:01:40.9]}
15... Ne4 {[%clk 0:01:57.6]} 16. Bxe4 {[%clk 0:01:41.1]} 16... Bxf3 {[%clk
0:01:57.7]} 17. Bg5 {[%clk 0:01:41.6]} 17... Be7 {[%clk 0:01:45.4]} 18. Bxe7
{[%clk 0:01:17]} 18... Qxe7 {[%clk 0:01:46.3]} 19. Bxf3 {[%clk 0:01:17.3]} 19...
Qxh4 {[%clk 0:01:45.6]} 20. O-O-O {[%clk 0:01:17.9]} 20... Qxf2 {[%clk
0:01:11.3]} 21. Qf4 {[%clk 0:01:18]} 21... O-O {[%clk 0:01:06]} 22. Kb1 {[%clk
0:01:18.4]} 22... Rfe8 {[%clk 0:00:58.1]} 23. Rh1 {[%clk 0:01:17]} 23... e5
{[%clk 0:00:57.1]} 24. dxe5 {[%clk 0:00:57.9]} 24... Nxe5 {[%clk 0:00:56.8]} 25.
Nd4 {[%clk 0:00:57.9]} 25... Nxf3 {[%clk 0:00:54.8]} 26. gxf3 {[%clk 0:00:57.8]}
26... Qe3 {[%clk 0:00:46.4]} 27. Qg4 {[%clk 0:00:51]} 27... Qg5 {[%clk
0:00:38.4]} 28. Qd7 {[%clk 0:00:47.4]} 28... Qf6 {[%clk 0:00:32.3]} 29. Rd1
{[%clk 0:00:42.1]} 29... Red8 {[%clk 0:00:32]} 30. Qxb7 {[%clk 0:00:41.2]} 30...
Rb8 {[%clk 0:00:32.2]} 31. Qa7 {[%clk 0:00:35.1]} 31... Qb6 {[%clk 0:00:28.1]}
32. Qxb6 {[%clk 0:00:34.4]} 32... Rxb6 {[%clk 0:00:29]} 33. b4 {[%clk
0:00:34.4]} 33... h5 {[%clk 0:00:27.8]} 34. Rh1 {[%clk 0:00:32.4]} 34... g6
{[%clk 0:00:27.3]} 35. Kb2 {[%clk 0:00:32.1]} 35... a5 {[%clk 0:00:27.4]} 36. c3
{[%clk 0:00:32.1]} 36... axb4 {[%clk 0:00:27.9]} 37. cxb4 {[%clk 0:00:32.9]}
37... Rc8 {[%clk 0:00:27.3]} 38. b5 {[%clk 0:00:13.9]} 38... Rc4 {[%clk
0:00:26.9]} 39. Rd1 {[%clk 0:00:13.5]} 39... h4 {[%clk 0:00:23.8]} 40. Kb3
{[%clk 0:00:14.1]} 40... h3 {[%clk 0:00:18.5]} 41. a4 {[%clk 0:00:14.8]} 41...
Kg7 {[%clk 0:00:15.8]} 42. Nc6 {[%clk 0:00:15.1]} 42... Rcxc6 {[%clk 0:00:15.3]}
43. Kb4 {[%clk 0:00:14.6]} 43... Rf6 {[%clk 0:00:15.6]} 44. a5 {[%clk
0:00:14.7]} 44... Rbe6 {[%clk 0:00:14.3]} 45. a6 {[%clk 0:00:10.4]} 45... Rxa6
{[%clk 0:00:14.4]} 46. bxa6 {[%clk 0:00:11.3]} 46... Rxa6 {[%clk 0:00:14.4]} 47.
Rh1 {[%clk 0:00:12.1]} 47... Rd6 {[%clk 0:00:11.1]} 48. Kc5 {[%clk 0:00:12.7]}
48... Rd7 {[%clk 0:00:10.9]} 49. Kd4 {[%clk 0:00:13.3]} 49... f5 {[%clk
0:00:08.5]} 50. Rxh3 {[%clk 0:00:14.2]} 50... Kf6 {[%clk 0:00:09.4]} 51. f4
{[%clk 0:00:14.5]} 51... Re7 {[%clk 0:00:09.2]} 52. Kxd5 {[%clk 0:00:14.6]}
52... Re4 {[%clk 0:00:09.9]} 53. Rf3 {[%clk 0:00:14.8]} 53... Ra4 {[%clk
0:00:09.5]} 54. Rf1 {[%clk 0:00:14.1]} 54... Kg7 {[%clk 0:00:07.1]} 55. Ke6
{[%clk 0:00:14.3]} 55... Ra6+ {[%clk 0:00:06.1]} 56. Ke5 {[%clk 0:00:14.7]}
56... Ra5+ {[%clk 0:00:06.3]} 57. Ke6 {[%clk 0:00:15.3]} 57... Ra6+ {[%clk
0:00:04.6]} 58. Ke5 {[%clk 0:00:16]} 58... Kf7 {[%clk 0:00:04.8]} 59. Rb1 {[%clk
0:00:15.6]} 59... Ra5+ {[%clk 0:00:05.2]} 60. Kd6 {[%clk 0:00:15.9]} 60... Ra6+
{[%clk 0:00:05.7]} 61. Ke5 {[%clk 0:00:16.1]} 61... Ra5+ {[%clk 0:00:06.2]} 62.
Kd4 {[%clk 0:00:16.3]} 62... Ra4+ {[%clk 0:00:06.5]} 63. Ke5 {[%clk 0:00:16.9]}
63... Ra5+ {[%clk 0:00:06.9]} 1/2-1/2